Workbook

Sheet IndividualCombined
A1: Master Score
A2: Individual Combined | Q2: Final
A3: Event: | B3: 3rd Thailand Paramotor King's Cup Open | F3: Total No. of Pilots: | H3: =[1]PilotReg!$F$2 -> 44
A4: Venue: | B4: Nong Kho, Chonburi, Thailand
A6: Wing No. | B6: Colour | C6: Pilot Name | D6: Gender | E6: Team | F6: Total Score | G6: Rank | H6: Task Score
H7: 1 | I7: 2 | J7: 3 | K7: 4 | L7: 5 | M7: 6 | N7: 7 | O7: 8 | P7: 9 | Q7: 10 | R7: 11 | S7: 12 | T7: 13 | U7: 14
A8: Automatic Fields. Do not modify manually.
A9: 21 | B9: =LOOKUP(A9,[1]PilotReg!$A:$A,[1]PilotReg!$B:$B) -> Orange-Blue | C9: =LOOKUP(A9,[1]PilotReg!$A:$A,[1]PilotReg!$E:$E) -> Kittiphop Phrommat | D9: =LOOKUP(A9,[1]PilotReg!$A:$A,[1]PilotReg!$G:$G) -> M | E9: =LOOKUP(A9,[1]PilotReg!$A:$A,[1]PilotReg!$F:$F) -> Mosquito | F9: =SUM(H9:U9) -> 379 | G9: =RANK(F9,$F:$F) -> 1 | H9: 30 | I9: 19 | J9: 30 | K9: 30 | L9: 30 | M9: 30 | N9: 19 | O9: 30 | P9: 30 | Q9: 30 | R9: 16 | S9: 30 | T9: 30 | U9: 25
A10: 19 | B10: =LOOKUP(A10,[1]PilotReg!$A:$A,[1]PilotReg!$B:$B) -> Blue-Green | C10: =LOOKUP(A10,[1]PilotReg!$A:$A,[1]PilotReg!$E:$E) -> Phrompiriya Tapeanthong | D10: =LOOKUP(A10,[1]PilotReg!$A:$A,[1]PilotReg!$G:$G) -> M | E10: =LOOKUP(A10,[1]PilotReg!$A:$A,[1]PilotReg!$F:$F) -> Mosquito | F10: 331 | G10: 2 | H10: 30 | I10: 20 | J10: 30 | K10: 19 | L10: 16 | M10: 30 | N10: 30 | O10: 30 | P10: 17 | Q10: 30 | R10: 19 | S10: 19 | T10: 25 | U10: 16
A11: 5 | B11: =LOOKUP(A11,[1]PilotReg!$A:$A,[1]PilotReg!$B:$B) -> Red-Orange | C11: =LOOKUP(A11,[1]PilotReg!$A:$A,[1]PilotReg!$E:$E) -> Daniel Macak | D11: =LOOKUP(A11,[1]PilotReg!$A:$A,[1]PilotReg!$G:$G) -> M | E11: =LOOKUP(A11,[1]PilotReg!$A:$A,[1]PilotReg!$F:$F) -> Siam Junior | F11: 318 | G11: 3 | H11: 30 | I11: 18 | J11: 30 | K11: 18 | L11: 17 | M11: 30 | N11: 7 | O11: 30 | P11: 20 | Q11: 30 | R11: 15 | S11: 25 | T11: 30 | U11: 18
A12: 29 | B12: =LOOKUP(A12,[1]PilotReg!$A:$A,[1]PilotReg!$B:$B) -> Orange-Grey | C12: =LOOKUP(A12,[1]PilotReg!$A:$A,[1]PilotReg!$E:$E) -> Pongnarin Somboon | D12: =LOOKUP(A12,[1]PilotReg!$A:$A,[1]PilotReg!$G:$G) -> M | E12: =LOOKUP(A12,[1]PilotReg!$A:$A,[1]PilotReg!$F:$F) -> Siam Junior | F12: 304 | G12: 4 | H12: 30 | I12: 30 | J12: 30 | K12: 17 | L12: 10 | M12: 30 | N12: 10 | O12: 25 | P12: 19 | Q12: 30 | R12: 22 | S12: 13 | T12: 30 | U12: 8
A13: 36 | B13: =LOOKUP(A13,[1]PilotReg!$A:$A,[1]PilotReg!$B:$B) -> Orange-Blue | C13: =LOOKUP(A13,[1]PilotReg!$A:$A,[1]PilotReg!$E:$E) -> Chayaphong Pothipuk | D13: =LOOKUP(A13,[1]PilotReg!$A:$A,[1]PilotReg!$G:$G) -> M | E13: =LOOKUP(A13,[1]PilotReg!$A:$A,[1]PilotReg!$F:$F) -> Polly Thailand | F13: 301 | G13: 5 | H13: 30 | I13: 3 | J13: 30 | K13: 25 | L13: 2 | M13: 30 | N13: 20 | O13: 30 | P13: 18 | Q13: 30 | R13: 25 | S13: 14 | T13: 30 | U13: 14
A14: 15 | B14: =LOOKUP(A14,[1]PilotReg!$A:$A,[1]PilotReg!$B:$B) -> Blue-White | C14: =LOOKUP(A14,[1]PilotReg!$A:$A,[1]PilotReg!$E:$E) -> David Graupera | D14: =LOOKUP(A14,[1]PilotReg!$A:$A,[1]PilotReg!$G:$G) -> M | E14: =LOOKUP(A14,[1]PilotReg!$A:$A,[1]PilotReg!$F:$F) -> Isarn Club | F14: 298 | G14: 6 | H14: 30 | I14: 2 | J14: 30 | K14: 14 | L14: 19 | M14: 25 | N14: 16 | O14: 30 | P14: 15 | Q14: 30 | R14: 18 | S14: 22 | T14: 30 | U14: 17
A15: 12 | B15: =LOOKUP(A15,[1]PilotReg!$A:$A,[1]PilotReg!$B:$B) -> Blue-White | C15: =LOOKUP(A15,[1]PilotReg!$A:$A,[1]PilotReg!$E:$E) -> Noppanai Jaisawang | D15: =LOOKUP(A15,[1]PilotReg!$A:$A,[1]PilotReg!$G:$G) -> M | E15: =LOOKUP(A15,[1]PilotReg!$A:$A,[1]PilotReg!$F:$F) -> Moobin | F15: 295 | G15: 7 | H15: 30 | I15: 17 | J15: 30 | K15: 9 | L15: 22 | M15: 30 | N15: 14 | O15: 30 | P15: 11 | Q15: 30 | R15: 8 | S15: 22 | T15: 30 | U15: 12
A16: 34 | B16: =LOOKUP(A16,[1]PilotReg!$A:$A,[1]PilotReg!$B:$B) -> Red-Grey | C16: =LOOKUP(A16,[1]PilotReg!$A:$A,[1]PilotReg!$E:$E) -> Panupong Tipayachan | D16: =LOOKUP(A16,[1]PilotReg!$A:$A,[1]PilotReg!$G:$G) -> M | E16: =LOOKUP(A16,[1]PilotReg!$A:$A,[1]PilotReg!$F:$F) -> Aunza Thailand | F16: 288 | G16: 8 | H16: 30 | I16: 2 | J16: 30 | K16: 20 | L16: 2 | M16: 30 | N16: 9 | O16: 30 | P16: 22 | Q16: 30 | R16: 10 | S16: 13 | T16: 30 | U16: 30
A17: 7 | B17: =LOOKUP(A17,[1]PilotReg!$A:$A,[1]PilotReg!$B:$B) -> Red-Black | C17: =LOOKUP(A17,[1]PilotReg!$A:$A,[1]PilotReg!$E:$E) -> Kerkrit Meunphukiew | D17: =LOOKUP(A17,[1]PilotReg!$A:$A,[1]PilotReg!$G:$G) -> M | E17: =LOOKUP(A17,[1]PilotReg!$A:$A,[1]PilotReg!$F:$F) -> Mosquito | F17: 285 | G17: 9 | H17: 30 | I17: 22 | J17: 30 | K17: 7 | L17: 7 | M17: 30 | N17: 25 | O17: 30 | P17: 12 | Q17: 25 | R17: 8 | S17: 9 | T17: 30 | U17: 20
A18: 10 | B18: =LOOKUP(A18,[1]PilotReg!$A:$A,[1]PilotReg!$B:$B) -> Orange-Blue | C18: =LOOKUP(A18,[1]PilotReg!$A:$A,[1]PilotReg!$E:$E) -> Noparat Intharaumnuay | D18: =LOOKUP(A18,[1]PilotReg!$A:$A,[1]PilotReg!$G:$G) -> M | E18: =LOOKUP(A18,[1]PilotReg!$A:$A,[1]PilotReg!$F:$F) -> Mosquito | F18: 279 | G18: 10 | H18: 30 | I18: 10 | J18: 30 | K18: 16 | L18: 2 | M18: 30 | N18: 22 | O18: 30 | P18: 13 | Q18: 30 | R18: 8 | S18: 13 | T18: 30 | U18: 15
A19: 32 | B19: =LOOKUP(A19,[1]PilotReg!$A:$A,[1]PilotReg!$B:$B) -> Red-White | C19: =LOOKUP(A19,[1]PilotReg!$A:$A,[1]PilotReg!$E:$E) -> Saman Promnaree | D19: =LOOKUP(A19,[1]PilotReg!$A:$A,[1]PilotReg!$G:$G) -> M | E19: =LOOKUP(A19,[1]PilotReg!$A:$A,[1]PilotReg!$F:$F) -> Mosquito | F19: 273 | G19: 11 | H19: 25 | I19: 2 | J19: 30 | K19: 15 | L19: 8 | M19: 30 | N19: 15 | O19: 30 | P19: 9 | Q19: 25 | R19: 17 | S19: 15 | T19: 30 | U19: 22
A20: 26 | B20: =LOOKUP(A20,[1]PilotReg!$A:$A,[1]PilotReg!$B:$B) -> Red-Grey | C20: =LOOKUP(A20,[1]PilotReg!$A:$A,[1]PilotReg!$E:$E) -> Pinit Kingtong | D20: =LOOKUP(A20,[1]PilotReg!$A:$A,[1]PilotReg!$G:$G) -> M | E20: =LOOKUP(A20,[1]PilotReg!$A:$A,[1]PilotReg!$F:$F) -> Moobin | F20: 269 | G20: 12 | H20: 25 | I20: 14 | J20: 30 | K20: 12 | L20: 15 | M20: 30 | N20: 9 | O20: 30 | P20: 14 | Q20: 30 | R20: 8 | S20: 19 | T20: 30 | U20: 3
A21: 33 | B21: =LOOKUP(A21,[1]PilotReg!$A:$A,[1]PilotReg!$B:$B) -> Black-Yellow | C21: =LOOKUP(A21,[1]PilotReg!$A:$A,[1]PilotReg!$E:$E) -> Pongkorn Thanasakulkornsaeng | D21: =LOOKUP(A21,[1]PilotReg!$A:$A,[1]PilotReg!$G:$G) -> M | E21: =LOOKUP(A21,[1]PilotReg!$A:$A,[1]PilotReg!$F:$F) -> Polly Thailand | F21: 265 | G21: 13 | H21: 25 | I21: 2 | J21: 30 | K21: 22 | L21: 2 | M21: 25 | N21: 17 | O21: 30 | P21: 25 | Q21: 30 | R21: 11 | S21: 5 | T21: 22 | U21: 19
A22: 45 | B22: =LOOKUP(A22,[1]PilotReg!$A:$A,[1]PilotReg!$B:$B) -> Blue-Red | C22: =LOOKUP(A22,[1]PilotReg!$A:$A,[1]PilotReg!$E:$E) -> Jiangsak Puangpee | D22: =LOOKUP(A22,[1]PilotReg!$A:$A,[1]PilotReg!$G:$G) -> M | E22: =LOOKUP(A22,[1]PilotReg!$A:$A,[1]PilotReg!$F:$F) -> Doklumduan | F22: 264 | G22: 14 | H22: 30 | I22: 2 | J22: 30 | K22: 13 | L22: 14 | M22: 30 | N22: 13 | O22: 30 | P22: 16 | Q22: 30 | R22: 8 | S22: 13 | T22: 30 | U22: 5
A23: 23 | B23: =LOOKUP(A23,[1]PilotReg!$A:$A,[1]PilotReg!$B:$B) -> Black-Blue | C23: =LOOKUP(A23,[1]PilotReg!$A:$A,[1]PilotReg!$E:$E) -> Prakit Binkaew | D23: =LOOKUP(A23,[1]PilotReg!$A:$A,[1]PilotReg!$G:$G) -> M | E23: =LOOKUP(A23,[1]PilotReg!$A:$A,[1]PilotReg!$F:$F) -> Individual | F23: 256 | G23: 15 | H23: 30 | I23: 13 | J23: 30 | K23: 4 | L23: 12 | M23: 30 | N23: 7 | O23: 30 | P23: 10 | Q23: 30 | R23: 8 | S23: 16 | T23: 30 | U23: 6
A24: 37 | B24: =LOOKUP(A24,[1]PilotReg!$A:$A,[1]PilotReg!$B:$B) -> Grey-Red | C24: =LOOKUP(A24,[1]PilotReg!$A:$A,[1]PilotReg!$E:$E) -> Sirichok Putaworn | D24: =LOOKUP(A24,[1]PilotReg!$A:$A,[1]PilotReg!$G:$G) -> M | E24: =LOOKUP(A24,[1]PilotReg!$A:$A,[1]PilotReg!$F:$F) -> Individual | F24: 246 | G24: 16 | H24: 30 | I24: 4 | J24: 30 | K24: 10 | L24: 13 | M24: 30 | N24: 2 | O24: 25 | P24: 8 | Q24: 30 | R24: 8 | S24: 17 | T24: 30 | U24: 9
A25: 48 | B25: =LOOKUP(A25,[1]PilotReg!$A:$A,[1]PilotReg!$B:$B) -> Green-Yellow | C25: =LOOKUP(A25,[1]PilotReg!$A:$A,[1]PilotReg!$E:$E) -> Nut Thanaphuthiphong | D25: =LOOKUP(A25,[1]PilotReg!$A:$A,[1]PilotReg!$G:$G) -> M | E25: =LOOKUP(A25,[1]PilotReg!$A:$A,[1]PilotReg!$F:$F) -> Individual | F25: 246 | G25: 16 | H25: 30 | I25: 16 | J25: 30 | K25: 2 | L25: 2 | M25: 30 | N25: 2 | O25: 30 | P25: 5 | Q25: 30 | R25: 30 | S25: 2 | T25: 30 | U25: 7
A26: 13 | B26: =LOOKUP(A26,[1]PilotReg!$A:$A,[1]PilotReg!$B:$B) -> Black-Green | C26: =LOOKUP(A26,[1]PilotReg!$A:$A,[1]PilotReg!$E:$E) -> Yuttaphol Anantawichain | D26: =LOOKUP(A26,[1]PilotReg!$A:$A,[1]PilotReg!$G:$G) -> M | E26: =LOOKUP(A26,[1]PilotReg!$A:$A,[1]PilotReg!$F:$F) -> 4st Mahongsorn | F26: 243 | G26: 18 | H26: 30 | I26: 25 | J26: 30 | K26: 2 | L26: 2 | M26: 30 | N26: 11 | O26: 30 | P26: 4 | Q26: 30 | R26: 9 | S26: 2 | T26: 25 | U26: 13
A27: 2 | B27: =LOOKUP(A27,[1]PilotReg!$A:$A,[1]PilotReg!$B:$B) -> Red-Orange | C27: =LOOKUP(A27,[1]PilotReg!$A:$A,[1]PilotReg!$E:$E) -> Aroonrat Jongonklang | D27: =LOOKUP(A27,[1]PilotReg!$A:$A,[1]PilotReg!$G:$G) -> F | E27: =LOOKUP(A27,[1]PilotReg!$A:$A,[1]PilotReg!$F:$F) -> Polly Thailand | F27: 228 | G27: 19 | H27: 30 | I27: 12 | J27: 30 | K27: 2 | L27: 18 | M27: 22 | N27: 3 | O27: 25 | P27: 2 | Q27: 30 | R27: 20 | S27: 2 | T27: 30 | U27: 2
A28: 20 | B28: =LOOKUP(A28,[1]PilotReg!$A:$A,[1]PilotReg!$B:$B) -> Purple-Orange | C28: =LOOKUP(A28,[1]PilotReg!$A:$A,[1]PilotReg!$E:$E) -> Somponk Busabonk | D28: =LOOKUP(A28,[1]PilotReg!$A:$A,[1]PilotReg!$G:$G) -> M | E28: =LOOKUP(A28,[1]PilotReg!$A:$A,[1]PilotReg!$F:$F) -> Moobin | F28: 221 | G28: 20 | H28: 25 | I28: 2 | J28: 30 | K28: 11 | L28: 2 | M28: 25 | N28: 2 | O28: 30 | P28: 7 | Q28: 30 | R28: 8 | S28: 9 | T28: 30 | U28: 10
A29: 38 | B29: =LOOKUP(A29,[1]PilotReg!$A:$A,[1]PilotReg!$B:$B) -> Black-White | C29: =LOOKUP(A29,[1]PilotReg!$A:$A,[1]PilotReg!$E:$E) -> Chaiyapin Chaininwan | D29: =LOOKUP(A29,[1]PilotReg!$A:$A,[1]PilotReg!$G:$G) -> M | E29: =LOOKUP(A29,[1]PilotReg!$A:$A,[1]PilotReg!$F:$F) -> Isarn Club | F29: 219 | G29: 21 | H29: 30 | I29: 2 | J29: 30 | K29: 8 | L29: 2 | M29: 30 | N29: 12 | O29: 30 | P29: 2 | Q29: 30 | R29: 8 | S29: 2 | T29: 22 | U29: 11
A30: 30 | B30: =LOOKUP(A30,[1]PilotReg!$A:$A,[1]PilotReg!$B:$B) -> Red-White | C30: =LOOKUP(A30,[1]PilotReg!$A:$A,[1]PilotReg!$E:$E) -> Pattarin Insornsart | D30: =LOOKUP(A30,[1]PilotReg!$A:$A,[1]PilotReg!$G:$G) -> F | E30: =LOOKUP(A30,[1]PilotReg!$A:$A,[1]PilotReg!$F:$F) -> 4st Mahongsorn | F30: 217 | G30: 22 | H30: 30 | I30: 2 | J30: 30 | K30: 2 | L30: 25 | M30: 30 | N30: 2 | O30: 30 | P30: 2 | Q30: 22 | R30: 8 | S30: 2 | T30: 30 | U30: 2
A31: 31 | B31: =LOOKUP(A31,[1]PilotReg!$A:$A,[1]PilotReg!$B:$B) -> Yellow-Red | C31: =LOOKUP(A31,[1]PilotReg!$A:$A,[1]PilotReg!$E:$E) -> Pongparn Supasorn | D31: =LOOKUP(A31,[1]PilotReg!$A:$A,[1]PilotReg!$G:$G) -> M | E31: =LOOKUP(A31,[1]PilotReg!$A:$A,[1]PilotReg!$F:$F) -> Ubonratchathani Aero Club | F31: 215 | G31: 23 | H31: 30 | I31: 2 | J31: 30 | K31: 6 | L31: 5 | M31: 30 | N31: 2 | O31: 30 | P31: 6 | Q31: 30 | R31: 8 | S31: 2 | T31: 30 | U31: 4
A32: 27 | B32: =LOOKUP(A32,[1]PilotReg!$A:$A,[1]PilotReg!$B:$B) -> Black-Grey | C32: =LOOKUP(A32,[1]PilotReg!$A:$A,[1]PilotReg!$E:$E) -> Nipon Somsri | D32: =LOOKUP(A32,[1]PilotReg!$A:$A,[1]PilotReg!$G:$G) -> M | E32: =LOOKUP(A32,[1]PilotReg!$A:$A,[1]PilotReg!$F:$F) -> Isarn Club | F32: 211 | G32: 24 | H32: 30 | I32: 11 | J32: 30 | K32: 2 | L32: 2 | M32: 30 | N32: 2 | O32: 30 | P32: 3 | Q32: 25 | R32: 8 | S32: 6 | T32: 30 | U32: 2
A33: 4 | B33: =LOOKUP(A33,[1]PilotReg!$A:$A,[1]PilotReg!$B:$B) -> Blue-Red | C33: =LOOKUP(A33,[1]PilotReg!$A:$A,[1]PilotReg!$E:$E) -> Chakrit Babphan | D33: =LOOKUP(A33,[1]PilotReg!$A:$A,[1]PilotReg!$G:$G) -> M | E33: =LOOKUP(A33,[1]PilotReg!$A:$A,[1]PilotReg!$F:$F) -> Moobin | F33: 209 | G33: 25 | H33: 30 | I33: 7 | J33: 30 | K33: 2 | L33: 2 | M33: 30 | N33: 7 | O33: 30 | P33: 2 | Q33: 30 | R33: 12 | S33: 0 | T33: 25 | U33: 2
A34: 22 | B34: =LOOKUP(A34,[1]PilotReg!$A:$A,[1]PilotReg!$B:$B) -> Blue-Grey | C34: =LOOKUP(A34,[1]PilotReg!$A:$A,[1]PilotReg!$E:$E) -> Nutchai Dadrung | D34: =LOOKUP(A34,[1]PilotReg!$A:$A,[1]PilotReg!$G:$G) -> M | E34: =LOOKUP(A34,[1]PilotReg!$A:$A,[1]PilotReg!$F:$F) -> Moobin | F34: 207 | G34: 26 | H34: 30 | I34: 2 | J34: 30 | K34: 2 | L34: 2 | M34: 30 | N34: 0 | O34: 30 | P34: 2 | Q34: 30 | R34: 8 | S34: 9 | T34: 30 | U34: 2
A35: 11 | B35: =LOOKUP(A35,[1]PilotReg!$A:$A,[1]PilotReg!$B:$B) -> Red-Blk-White | C35: =LOOKUP(A35,[1]PilotReg!$A:$A,[1]PilotReg!$E:$E) -> Soratat Thongsub | D35: =LOOKUP(A35,[1]PilotReg!$A:$A,[1]PilotReg!$G:$G) -> M | E35: =LOOKUP(A35,[1]PilotReg!$A:$A,[1]PilotReg!$F:$F) -> Doklumduan | F35: 205 | G35: 27 | H35: 30 | I35: 8 | J35: 25 | K35: 3 | L35: 2 | M35: 30 | N35: 2 | O35: 30 | P35: 2 | Q35: 30 | R35: 8 | S35: 3 | T35: 30 | U35: 2
A36: 43 | B36: =LOOKUP(A36,[1]PilotReg!$A:$A,[1]PilotReg!$B:$B) -> Yellow-White | C36: =LOOKUP(A36,[1]PilotReg!$A:$A,[1]PilotReg!$E:$E) -> A Aongard | D36: =LOOKUP(A36,[1]PilotReg!$A:$A,[1]PilotReg!$G:$G) -> M | E36: =LOOKUP(A36,[1]PilotReg!$A:$A,[1]PilotReg!$F:$F) -> Siam Junior | F36: 205 | G36: 27 | H36: 30 | I36: 16 | J36: 30 | K36: 2 | L36: 2 | M36: 30 | N36: 18 | O36: 30 | P36: 0 | Q36: 30 | R36: 14 | S36: 3 | T36: 0 | U36: 0
A37: 3 | B37: =LOOKUP(A37,[1]PilotReg!$A:$A,[1]PilotReg!$B:$B) -> Orange-Green | C37: =LOOKUP(A37,[1]PilotReg!$A:$A,[1]PilotReg!$E:$E) -> Avasda Chaisorn | D37: =LOOKUP(A37,[1]PilotReg!$A:$A,[1]PilotReg!$G:$G) -> F | E37: =LOOKUP(A37,[1]PilotReg!$A:$A,[1]PilotReg!$F:$F) -> 4st Mahongsorn | F37: 204 | G37: 29 | H37: 30 | I37: 2 | J37: 30 | K37: 2 | L37: 9 | M37: 30 | N37: 2 | O37: 30 | P37: 2 | Q37: 25 | R37: 8 | S37: 2 | T37: 30 | U37: 2
A38: 8 | B38: =LOOKUP(A38,[1]PilotReg!$A:$A,[1]PilotReg!$B:$B) -> White | C38: =LOOKUP(A38,[1]PilotReg!$A:$A,[1]PilotReg!$E:$E) -> Plaifha Thongdonpum | D38: =LOOKUP(A38,[1]PilotReg!$A:$A,[1]PilotReg!$G:$G) -> F | E38: =LOOKUP(A38,[1]PilotReg!$A:$A,[1]PilotReg!$F:$F) -> Siam Junior | F38: 203 | G38: 30 | H38: 30 | I38: 9 | J38: 22 | K38: 2 | L38: 4 | M38: 30 | N38: 2 | O38: 30 | P38: 2 | Q38: 30 | R38: 8 | S38: 2 | T38: 30 | U38: 2
A39: 17 | B39: =LOOKUP(A39,[1]PilotReg!$A:$A,[1]PilotReg!$B:$B) -> Black-Orange | C39: =LOOKUP(A39,[1]PilotReg!$A:$A,[1]PilotReg!$E:$E) -> Chanapa Sermsai | D39: =LOOKUP(A39,[1]PilotReg!$A:$A,[1]PilotReg!$G:$G) -> F | E39: =LOOKUP(A39,[1]PilotReg!$A:$A,[1]PilotReg!$F:$F) -> Aunza Thailand | F39: 202 | G39: 31 | H39: 30 | I39: 2 | J39: 30 | K39: 2 | L39: 2 | M39: 30 | N39: 2 | O39: 30 | P39: 2 | Q39: 30 | R39: 8 | S39: 2 | T39: 30 | U39: 2
A40: 35 | B40: =LOOKUP(A40,[1]PilotReg!$A:$A,[1]PilotReg!$B:$B) -> Green-Red | C40: =LOOKUP(A40,[1]PilotReg!$A:$A,[1]PilotReg!$E:$E) -> Kittisak Khamwongpin | D40: =LOOKUP(A40,[1]PilotReg!$A:$A,[1]PilotReg!$G:$G) -> M | E40: =LOOKUP(A40,[1]PilotReg!$A:$A,[1]PilotReg!$F:$F) -> Doklumduan | F40: 201 | G40: 32 | H40: 30 | I40: 2 | J40: 30 | K40: 0 | L40: 3 | M40: 30 | N40: 7 | O40: 25 | P40: 2 | Q40: 30 | R40: 8 | S40: 2 | T40: 30 | U40: 2
A41: 25 | B41: =LOOKUP(A41,[1]PilotReg!$A:$A,[1]PilotReg!$B:$B) -> Red-Yellow | C41: =LOOKUP(A41,[1]PilotReg!$A:$A,[1]PilotReg!$E:$E) -> Piyapong Tremsap | D41: =LOOKUP(A41,[1]PilotReg!$A:$A,[1]PilotReg!$G:$G) -> M | E41: =LOOKUP(A41,[1]PilotReg!$A:$A,[1]PilotReg!$F:$F) -> Ubonratchathani Aero Club | F41: 200 | G41: 33 | H41: 25 | I41: 2 | J41: 30 | K41: 2 | L41: 2 | M41: 30 | N41: 0 | O41: 30 | P41: 2 | Q41: 30 | R41: 13 | S41: 2 | T41: 30 | U41: 2
A42: 9 | B42: =LOOKUP(A42,[1]PilotReg!$A:$A,[1]PilotReg!$B:$B) -> Blue-White | C42: =LOOKUP(A42,[1]PilotReg!$A:$A,[1]PilotReg!$E:$E) -> Paramin Sangkaew | D42: =LOOKUP(A42,[1]PilotReg!$A:$A,[1]PilotReg!$G:$G) -> M | E42: =LOOKUP(A42,[1]PilotReg!$A:$A,[1]PilotReg!$F:$F) -> Doklumduan | F42: 197 | G42: 34 | H42: 30 | I42: 2 | J42: 30 | K42: 2 | L42: 2 | M42: 30 | N42: 2 | O42: 30 | P42: 2 | Q42: 25 | R42: 8 | S42: 2 | T42: 30 | U42: 2
A43: 16 | B43: =LOOKUP(A43,[1]PilotReg!$A:$A,[1]PilotReg!$B:$B) -> Blue-Orange | C43: =LOOKUP(A43,[1]PilotReg!$A:$A,[1]PilotReg!$E:$E) -> Jirasak Viteetham | D43: =LOOKUP(A43,[1]PilotReg!$A:$A,[1]PilotReg!$G:$G) -> M | E43: =LOOKUP(A43,[1]PilotReg!$A:$A,[1]PilotReg!$F:$F) -> Isarn Club | F43: 184 | G43: 35 | H43: 30 | I43: 6 | J43: 22 | K43: 5 | L43: 2 | M43: 22 | N43: 2 | O43: 20 | P43: 2 | Q43: 30 | R43: 8 | S43: 3 | T43: 30 | U43: 2
A44: 14 | B44: =LOOKUP(A44,[1]PilotReg!$A:$A,[1]PilotReg!$B:$B) -> Red | C44: =LOOKUP(A44,[1]PilotReg!$A:$A,[1]PilotReg!$E:$E) -> Kittipas Boonkoom | D44: =LOOKUP(A44,[1]PilotReg!$A:$A,[1]PilotReg!$G:$G) -> M | E44: =LOOKUP(A44,[1]PilotReg!$A:$A,[1]PilotReg!$F:$F) -> Doklumduan | F44: 177 | G44: 36 | H44: 22 | I44: 2 | J44: 25 | K44: 2 | L44: 2 | M44: 30 | N44: 2 | O44: 30 | P44: 2 | Q44: 25 | R44: 8 | S44: 0 | T44: 25 | U44: 2
A45: 6 | B45: =LOOKUP(A45,[1]PilotReg!$A:$A,[1]PilotReg!$B:$B) -> Orange-White | C45: =LOOKUP(A45,[1]PilotReg!$A:$A,[1]PilotReg!$E:$E) -> Suriyon Sungsook | D45: =LOOKUP(A45,[1]PilotReg!$A:$A,[1]PilotReg!$G:$G) -> M | E45: =LOOKUP(A45,[1]PilotReg!$A:$A,[1]PilotReg!$F:$F) -> 4st Mahongsorn | F45: 167 | G45: 37 | H45: 30 | I45: 2 | J45: 30 | K45: 2 | L45: 11 | M45: 30 | N45: 2 | O45: 30 | P45: 0 | Q45: 30 | R45: 0 | S45: 0 | T45: 0 | U45: 0
A46: 40 | B46: =LOOKUP(A46,[1]PilotReg!$A:$A,[1]PilotReg!$B:$B) -> White | C46: =LOOKUP(A46,[1]PilotReg!$A:$A,[1]PilotReg!$E:$E) -> Gorbua Yenvaree | D46: =LOOKUP(A46,[1]PilotReg!$A:$A,[1]PilotReg!$G:$G) -> F | E46: =LOOKUP(A46,[1]PilotReg!$A:$A,[1]PilotReg!$F:$F) -> Aunza Thailand | F46: 164 | G46: 38 | H46: 22 | I46: 2 | J46: 0 | K46: 0 | L46: 20 | M46: 30 | N46: 2 | O46: 22 | P46: 2 | Q46: 22 | R46: 8 | S46: 2 | T46: 30 | U46: 2
A47: 44 | B47: =LOOKUP(A47,[1]PilotReg!$A:$A,[1]PilotReg!$B:$B) -> Blue-Yellow | C47: =LOOKUP(A47,[1]PilotReg!$A:$A,[1]PilotReg!$E:$E) -> Woraphot Khamchomphu | D47: =LOOKUP(A47,[1]PilotReg!$A:$A,[1]PilotReg!$G:$G) -> M | E47: =LOOKUP(A47,[1]PilotReg!$A:$A,[1]PilotReg!$F:$F) -> Ubonratchathani Aero Club | F47: 158 | G47: 39 | H47: 30 | I47: 5 | J47: 0 | K47: 0 | L47: 2 | M47: 30 | N47: 0 | O47: 30 | P47: 2 | Q47: 22 | R47: 8 | S47: 2 | T47: 25 | U47: 2
A48: 1 | B48: =LOOKUP(A48,[1]PilotReg!$A:$A,[1]PilotReg!$B:$B) -> Orange-Blue | C48: =LOOKUP(A48,[1]PilotReg!$A:$A,[1]PilotReg!$E:$E) -> Tanaporn Panapho | D48: =LOOKUP(A48,[1]PilotReg!$A:$A,[1]PilotReg!$G:$G) -> F | E48: =LOOKUP(A48,[1]PilotReg!$A:$A,[1]PilotReg!$F:$F) -> Aunza Thailand | F48: 129 | G48: 40 | H48: 22 | I48: 2 | J48: 0 | K48: 0 | L48: 6 | M48: 25 | N48: 2 | O48: 30 | P48: 2 | Q48: 30 | R48: 8 | S48: 2 | T48: 0 | U48: 0
A49: 18 | B49: =LOOKUP(A49,[1]PilotReg!$A:$A,[1]PilotReg!$B:$B) -> Blue-Green | C49: =LOOKUP(A49,[1]PilotReg!$A:$A,[1]PilotReg!$E:$E) -> Anuparp Sura | D49: =LOOKUP(A49,[1]PilotReg!$A:$A,[1]PilotReg!$G:$G) -> M | E49: =LOOKUP(A49,[1]PilotReg!$A:$A,[1]PilotReg!$F:$F) -> Polly Thailand | F49: 94 | G49: 41 | H49: 30 | I49: 2 | J49: 30 | K49: 2 | L49: 0 | M49: 0 | N49: 0 | O49: 30 | P49: 0 | Q49: 0 | R49: 0 | S49: 0 | T49: 0 | U49: 0
A50: 28 | B50: =LOOKUP(A50,[1]PilotReg!$A:$A,[1]PilotReg!$B:$B) -> Orange-Red | C50: =LOOKUP(A50,[1]PilotReg!$A:$A,[1]PilotReg!$E:$E) -> Puja Laksana | D50: =LOOKUP(A50,[1]PilotReg!$A:$A,[1]PilotReg!$G:$G) -> M | E50: =LOOKUP(A50,[1]PilotReg!$A:$A,[1]PilotReg!$F:$F) -> Individual | F50: 62 | G50: 42 | H50: 30 | I50: 2 | J50: 0 | K50: 0 | L50: 0 | M50: 0 | N50: 0 | O50: 30 | P50: 0 | Q50: 0 | R50: 0 | S50: 0 | T50: 0 | U50: 0
A51: 42 | B51: =LOOKUP(A51,[1]PilotReg!$A:$A,[1]PilotReg!$B:$B) -> Red-Blue | C51: =LOOKUP(A51,[1]PilotReg!$A:$A,[1]PilotReg!$E:$E) -> Chanin Chaithaset | D51: =LOOKUP(A51,[1]PilotReg!$A:$A,[1]PilotReg!$G:$G) -> M | E51: =LOOKUP(A51,[1]PilotReg!$A:$A,[1]PilotReg!$F:$F) -> Isarn Club | F51: 62 | G51: 42 | H51: 30 | I51: 2 | J51: 0 | K51: 0 | L51: 0 | M51: 0 | N51: 0 | O51: 30 | P51: 0 | Q51: 0 | R51: 0 | S51: 0 | T51: 0 | U51: 0
A52: 39 | B52: =LOOKUP(A52,[1]PilotReg!$A:$A,[1]PilotReg!$B:$B) -> Blue-Black | C52: =LOOKUP(A52,[1]PilotReg!$A:$A,[1]PilotReg!$E:$E) -> Naruporn Wathaya | D52: =LOOKUP(A52,[1]PilotReg!$A:$A,[1]PilotReg!$G:$G) -> F | E52: =LOOKUP(A52,[1]PilotReg!$A:$A,[1]PilotReg!$F:$F) -> Siam Junior | F52: 54 | G52: 44 | H52: 20 | I52: 2 | J52: 0 | K52: 0 | L52: 0 | M52: 0 | N52: 0 | O52: 30 | P52: 0 | Q52: 0 | R52: 0 | S52: 2 | T52: 0 | U52: 0

Sheet IndividualPrecision
A1: Master Score
A2: Individual Precision | O2: Final
A3: Event: | B3: 3rd Thailand Paramotor King's Cup Open | F3: Total No. of Pilots: | H3: =[1]PilotReg!$F$2 -> 44
A4: Venue: | B4: Nong Kho, Chonburi, Thailand
A6: Wing No. | B6: Colour | C6: Pilot Name | D6: Gender | E6: Team | F6: Total Score | G6: Rank | H6: Task Score
H7: 1 | I7: 2 | J7: 3 | K7: 4 | L7: 6 | M7: 7 | N7: 8 | O7: 9 | P7: 10 | Q7: 11 | R7: 13 | S7: 14
A8: Automatic Fields. Do not modify manually.
A9: 21 | B9: =LOOKUP(A9,[1]PilotReg!$A:$A,[1]PilotReg!$B:$B) -> Orange-Blue | C9: =LOOKUP(A9,[1]PilotReg!$A:$A,[1]PilotReg!$E:$E) -> Kittiphop Phrommat | D9: =LOOKUP(A9,[1]PilotReg!$A:$A,[1]PilotReg!$G:$G) -> M | E9: =LOOKUP(A9,[1]PilotReg!$A:$A,[1]PilotReg!$F:$F) -> Mosquito | F9: =SUM(H9:S9) -> 319 | G9: =RANK(F9,$F:$F) -> 1 | H9: 30 | I9: 19 | J9: 30 | K9: 30 | L9: 30 | M9: 19 | N9: 30 | O9: 30 | P9: 30 | Q9: 16 | R9: 30 | S9: 25
A10: 19 | B10: =LOOKUP(A10,[1]PilotReg!$A:$A,[1]PilotReg!$B:$B) -> Blue-Green | C10: =LOOKUP(A10,[1]PilotReg!$A:$A,[1]PilotReg!$E:$E) -> Phrompiriya Tapeanthong | D10: =LOOKUP(A10,[1]PilotReg!$A:$A,[1]PilotReg!$G:$G) -> M | E10: =LOOKUP(A10,[1]PilotReg!$A:$A,[1]PilotReg!$F:$F) -> Mosquito | F10: 296 | G10: 2 | H10: 30 | I10: 20 | J10: 30 | K10: 19 | L10: 30 | M10: 30 | N10: 30 | O10: 17 | P10: 30 | Q10: 19 | R10: 25 | S10: 16
A11: 36 | B11: =LOOKUP(A11,[1]PilotReg!$A:$A,[1]PilotReg!$B:$B) -> Orange-Blue | C11: =LOOKUP(A11,[1]PilotReg!$A:$A,[1]PilotReg!$E:$E) -> Chayaphong Pothipuk | D11: =LOOKUP(A11,[1]PilotReg!$A:$A,[1]PilotReg!$G:$G) -> M | E11: =LOOKUP(A11,[1]PilotReg!$A:$A,[1]PilotReg!$F:$F) -> Polly Thailand | F11: 285 | G11: 3 | H11: 30 | I11: 3 | J11: 30 | K11: 25 | L11: 30 | M11: 20 | N11: 30 | O11: 18 | P11: 30 | Q11: 25 | R11: 30 | S11: 14
A12: 29 | B12: =LOOKUP(A12,[1]PilotReg!$A:$A,[1]PilotReg!$B:$B) -> Orange-Grey | C12: =LOOKUP(A12,[1]PilotReg!$A:$A,[1]PilotReg!$E:$E) -> Pongnarin Somboon | D12: =LOOKUP(A12,[1]PilotReg!$A:$A,[1]PilotReg!$G:$G) -> M | E12: =LOOKUP(A12,[1]PilotReg!$A:$A,[1]PilotReg!$F:$F) -> Siam Junior | F12: 281 | G12: 4 | H12: 30 | I12: 30 | J12: 30 | K12: 17 | L12: 30 | M12: 10 | N12: 25 | O12: 19 | P12: 30 | Q12: 22 | R12: 30 | S12: 8
A13: 5 | B13: =LOOKUP(A13,[1]PilotReg!$A:$A,[1]PilotReg!$B:$B) -> Red-Orange | C13: =LOOKUP(A13,[1]PilotReg!$A:$A,[1]PilotReg!$E:$E) -> Daniel Macak | D13: =LOOKUP(A13,[1]PilotReg!$A:$A,[1]PilotReg!$G:$G) -> M | E13: =LOOKUP(A13,[1]PilotReg!$A:$A,[1]PilotReg!$F:$F) -> Siam Junior | F13: 276 | G13: 5 | H13: 30 | I13: 18 | J13: 30 | K13: 18 | L13: 30 | M13: 7 | N13: 30 | O13: 20 | P13: 30 | Q13: 15 | R13: 30 | S13: 18
A14: 34 | B14: =LOOKUP(A14,[1]PilotReg!$A:$A,[1]PilotReg!$B:$B) -> Red-Grey | C14: =LOOKUP(A14,[1]PilotReg!$A:$A,[1]PilotReg!$E:$E) -> Panupong Tipayachan | D14: =LOOKUP(A14,[1]PilotReg!$A:$A,[1]PilotReg!$G:$G) -> M | E14: =LOOKUP(A14,[1]PilotReg!$A:$A,[1]PilotReg!$F:$F) -> Aunza Thailand | F14: 273 | G14: 6 | H14: 30 | I14: 2 | J14: 30 | K14: 20 | L14: 30 | M14: 9 | N14: 30 | O14: 22 | P14: 30 | Q14: 10 | R14: 30 | S14: 30
A15: 7 | B15: =LOOKUP(A15,[1]PilotReg!$A:$A,[1]PilotReg!$B:$B) -> Red-Black | C15: =LOOKUP(A15,[1]PilotReg!$A:$A,[1]PilotReg!$E:$E) -> Kerkrit Meunphukiew | D15: =LOOKUP(A15,[1]PilotReg!$A:$A,[1]PilotReg!$G:$G) -> M | E15: =LOOKUP(A15,[1]PilotReg!$A:$A,[1]PilotReg!$F:$F) -> Mosquito | F15: 269 | G15: 7 | H15: 30 | I15: 22 | J15: 30 | K15: 7 | L15: 30 | M15: 25 | N15: 30 | O15: 12 | P15: 25 | Q15: 8 | R15: 30 | S15: 20
A16: 10 | B16: =LOOKUP(A16,[1]PilotReg!$A:$A,[1]PilotReg!$B:$B) -> Orange-Blue | C16: =LOOKUP(A16,[1]PilotReg!$A:$A,[1]PilotReg!$E:$E) -> Noparat Intharaumnuay | D16: =LOOKUP(A16,[1]PilotReg!$A:$A,[1]PilotReg!$G:$G) -> M | E16: =LOOKUP(A16,[1]PilotReg!$A:$A,[1]PilotReg!$F:$F) -> Mosquito | F16: 264 | G16: 8 | H16: 30 | I16: 10 | J16: 30 | K16: 16 | L16: 30 | M16: 22 | N16: 30 | O16: 13 | P16: 30 | Q16: 8 | R16: 30 | S16: 15
A17: 33 | B17: =LOOKUP(A17,[1]PilotReg!$A:$A,[1]PilotReg!$B:$B) -> Black-Yellow | C17: =LOOKUP(A17,[1]PilotReg!$A:$A,[1]PilotReg!$E:$E) -> Pongkorn Thanasakulkornsaeng | D17: =LOOKUP(A17,[1]PilotReg!$A:$A,[1]PilotReg!$G:$G) -> M | E17: =LOOKUP(A17,[1]PilotReg!$A:$A,[1]PilotReg!$F:$F) -> Polly Thailand | F17: 258 | G17: 9 | H17: 25 | I17: 2 | J17: 30 | K17: 22 | L17: 25 | M17: 17 | N17: 30 | O17: 25 | P17: 30 | Q17: 11 | R17: 22 | S17: 19
A18: 15 | B18: =LOOKUP(A18,[1]PilotReg!$A:$A,[1]PilotReg!$B:$B) -> Blue-White | C18: =LOOKUP(A18,[1]PilotReg!$A:$A,[1]PilotReg!$E:$E) -> David Graupera | D18: =LOOKUP(A18,[1]PilotReg!$A:$A,[1]PilotReg!$G:$G) -> M | E18: =LOOKUP(A18,[1]PilotReg!$A:$A,[1]PilotReg!$F:$F) -> Isarn Club | F18: 257 | G18: 10 | H18: 30 | I18: 2 | J18: 30 | K18: 14 | L18: 25 | M18: 16 | N18: 30 | O18: 15 | P18: 30 | Q18: 18 | R18: 30 | S18: 17
A19: 12 | B19: =LOOKUP(A19,[1]PilotReg!$A:$A,[1]PilotReg!$B:$B) -> Blue-White | C19: =LOOKUP(A19,[1]PilotReg!$A:$A,[1]PilotReg!$E:$E) -> Noppanai Jaisawang | D19: =LOOKUP(A19,[1]PilotReg!$A:$A,[1]PilotReg!$G:$G) -> M | E19: =LOOKUP(A19,[1]PilotReg!$A:$A,[1]PilotReg!$F:$F) -> Moobin | F19: 251 | G19: 11 | H19: 30 | I19: 17 | J19: 30 | K19: 9 | L19: 30 | M19: 14 | N19: 30 | O19: 11 | P19: 30 | Q19: 8 | R19: 30 | S19: 12
A20: 32 | B20: =LOOKUP(A20,[1]PilotReg!$A:$A,[1]PilotReg!$B:$B) -> Red-White | C20: =LOOKUP(A20,[1]PilotReg!$A:$A,[1]PilotReg!$E:$E) -> Saman Promnaree | D20: =LOOKUP(A20,[1]PilotReg!$A:$A,[1]PilotReg!$G:$G) -> M | E20: =LOOKUP(A20,[1]PilotReg!$A:$A,[1]PilotReg!$F:$F) -> Mosquito | F20: 250 | G20: 12 | H20: 25 | I20: 2 | J20: 30 | K20: 15 | L20: 30 | M20: 15 | N20: 30 | O20: 9 | P20: 25 | Q20: 17 | R20: 30 | S20: 22
A21: 48 | B21: =LOOKUP(A21,[1]PilotReg!$A:$A,[1]PilotReg!$B:$B) -> Green-Yellow | C21: =LOOKUP(A21,[1]PilotReg!$A:$A,[1]PilotReg!$E:$E) -> Nut Thanaphuthiphong | D21: =LOOKUP(A21,[1]PilotReg!$A:$A,[1]PilotReg!$G:$G) -> M | E21: =LOOKUP(A21,[1]PilotReg!$A:$A,[1]PilotReg!$F:$F) -> Individual | F21: 242 | G21: 13 | H21: 30 | I21: 16 | J21: 30 | K21: 2 | L21: 30 | M21: 2 | N21: 30 | O21: 5 | P21: 30 | Q21: 30 | R21: 30 | S21: 7
A22: 13 | B22: =LOOKUP(A22,[1]PilotReg!$A:$A,[1]PilotReg!$B:$B) -> Black-Green | C22: =LOOKUP(A22,[1]PilotReg!$A:$A,[1]PilotReg!$E:$E) -> Yuttaphol Anantawichain | D22: =LOOKUP(A22,[1]PilotReg!$A:$A,[1]PilotReg!$G:$G) -> M | E22: =LOOKUP(A22,[1]PilotReg!$A:$A,[1]PilotReg!$F:$F) -> 4st Mahongsorn | F22: 239 | G22: 14 | H22: 30 | I22: 25 | J22: 30 | K22: 2 | L22: 30 | M22: 11 | N22: 30 | O22: 4 | P22: 30 | Q22: 9 | R22: 25 | S22: 13
A23: 45 | B23: =LOOKUP(A23,[1]PilotReg!$A:$A,[1]PilotReg!$B:$B) -> Blue-Red | C23: =LOOKUP(A23,[1]PilotReg!$A:$A,[1]PilotReg!$E:$E) -> Jiangsak Puangpee | D23: =LOOKUP(A23,[1]PilotReg!$A:$A,[1]PilotReg!$G:$G) -> M | E23: =LOOKUP(A23,[1]PilotReg!$A:$A,[1]PilotReg!$F:$F) -> Doklumduan | F23: 237 | G23: 15 | H23: 30 | I23: 2 | J23: 30 | K23: 13 | L23: 30 | M23: 13 | N23: 30 | O23: 16 | P23: 30 | Q23: 8 | R23: 30 | S23: 5
A24: 26 | B24: =LOOKUP(A24,[1]PilotReg!$A:$A,[1]PilotReg!$B:$B) -> Red-Grey | C24: =LOOKUP(A24,[1]PilotReg!$A:$A,[1]PilotReg!$E:$E) -> Pinit Kingtong | D24: =LOOKUP(A24,[1]PilotReg!$A:$A,[1]PilotReg!$G:$G) -> M | E24: =LOOKUP(A24,[1]PilotReg!$A:$A,[1]PilotReg!$F:$F) -> Moobin | F24: 235 | G24: 16 | H24: 25 | I24: 14 | J24: 30 | K24: 12 | L24: 30 | M24: 9 | N24: 30 | O24: 14 | P24: 30 | Q24: 8 | R24: 30 | S24: 3
A25: 23 | B25: =LOOKUP(A25,[1]PilotReg!$A:$A,[1]PilotReg!$B:$B) -> Black-Blue | C25: =LOOKUP(A25,[1]PilotReg!$A:$A,[1]PilotReg!$E:$E) -> Prakit Binkaew | D25: =LOOKUP(A25,[1]PilotReg!$A:$A,[1]PilotReg!$G:$G) -> M | E25: =LOOKUP(A25,[1]PilotReg!$A:$A,[1]PilotReg!$F:$F) -> Individual | F25: 228 | G25: 17 | H25: 30 | I25: 13 | J25: 30 | K25: 4 | L25: 30 | M25: 7 | N25: 30 | O25: 10 | P25: 30 | Q25: 8 | R25: 30 | S25: 6
A26: 37 | B26: =LOOKUP(A26,[1]PilotReg!$A:$A,[1]PilotReg!$B:$B) -> Grey-Red | C26: =LOOKUP(A26,[1]PilotReg!$A:$A,[1]PilotReg!$E:$E) -> Sirichok Putaworn | D26: =LOOKUP(A26,[1]PilotReg!$A:$A,[1]PilotReg!$G:$G) -> M | E26: =LOOKUP(A26,[1]PilotReg!$A:$A,[1]PilotReg!$F:$F) -> Individual | F26: 216 | G26: 18 | H26: 30 | I26: 4 | J26: 30 | K26: 10 | L26: 30 | M26: 2 | N26: 25 | O26: 8 | P26: 30 | Q26: 8 | R26: 30 | S26: 9
A27: 38 | B27: =LOOKUP(A27,[1]PilotReg!$A:$A,[1]PilotReg!$B:$B) -> Black-White | C27: =LOOKUP(A27,[1]PilotReg!$A:$A,[1]PilotReg!$E:$E) -> Chaiyapin Chaininwan | D27: =LOOKUP(A27,[1]PilotReg!$A:$A,[1]PilotReg!$G:$G) -> M | E27: =LOOKUP(A27,[1]PilotReg!$A:$A,[1]PilotReg!$F:$F) -> Isarn Club | F27: 215 | G27: 19 | H27: 30 | I27: 2 | J27: 30 | K27: 8 | L27: 30 | M27: 12 | N27: 30 | O27: 2 | P27: 30 | Q27: 8 | R27: 22 | S27: 11
A28: 20 | B28: =LOOKUP(A28,[1]PilotReg!$A:$A,[1]PilotReg!$B:$B) -> Purple-Orange | C28: =LOOKUP(A28,[1]PilotReg!$A:$A,[1]PilotReg!$E:$E) -> Somponk Busabonk | D28: =LOOKUP(A28,[1]PilotReg!$A:$A,[1]PilotReg!$G:$G) -> M | E28: =LOOKUP(A28,[1]PilotReg!$A:$A,[1]PilotReg!$F:$F) -> Moobin | F28: 210 | G28: 20 | H28: 25 | I28: 2 | J28: 30 | K28: 11 | L28: 25 | M28: 2 | N28: 30 | O28: 7 | P28: 30 | Q28: 8 | R28: 30 | S28: 10
A29: 2 | B29: =LOOKUP(A29,[1]PilotReg!$A:$A,[1]PilotReg!$B:$B) -> Red-Orange | C29: =LOOKUP(A29,[1]PilotReg!$A:$A,[1]PilotReg!$E:$E) -> Aroonrat Jongonklang | D29: =LOOKUP(A29,[1]PilotReg!$A:$A,[1]PilotReg!$G:$G) -> F | E29: =LOOKUP(A29,[1]PilotReg!$A:$A,[1]PilotReg!$F:$F) -> Polly Thailand | F29: 208 | G29: 21 | H29: 30 | I29: 12 | J29: 30 | K29: 2 | L29: 22 | M29: 3 | N29: 25 | O29: 2 | P29: 30 | Q29: 20 | R29: 30 | S29: 2
A30: 31 | B30: =LOOKUP(A30,[1]PilotReg!$A:$A,[1]PilotReg!$B:$B) -> Yellow-Red | C30: =LOOKUP(A30,[1]PilotReg!$A:$A,[1]PilotReg!$E:$E) -> Pongparn Supasorn | D30: =LOOKUP(A30,[1]PilotReg!$A:$A,[1]PilotReg!$G:$G) -> M | E30: =LOOKUP(A30,[1]PilotReg!$A:$A,[1]PilotReg!$F:$F) -> Ubonratchathani Aero Club | F30: 208 | G30: 21 | H30: 30 | I30: 2 | J30: 30 | K30: 6 | L30: 30 | M30: 2 | N30: 30 | O30: 6 | P30: 30 | Q30: 8 | R30: 30 | S30: 4
A31: 4 | B31: =LOOKUP(A31,[1]PilotReg!$A:$A,[1]PilotReg!$B:$B) -> Blue-Red | C31: =LOOKUP(A31,[1]PilotReg!$A:$A,[1]PilotReg!$E:$E) -> Chakrit Babphan | D31: =LOOKUP(A31,[1]PilotReg!$A:$A,[1]PilotReg!$G:$G) -> M | E31: =LOOKUP(A31,[1]PilotReg!$A:$A,[1]PilotReg!$F:$F) -> Moobin | F31: 207 | G31: 23 | H31: 30 | I31: 7 | J31: 30 | K31: 2 | L31: 30 | M31: 7 | N31: 30 | O31: 2 | P31: 30 | Q31: 12 | R31: 25 | S31: 2
A32: 27 | B32: =LOOKUP(A32,[1]PilotReg!$A:$A,[1]PilotReg!$B:$B) -> Black-Grey | C32: =LOOKUP(A32,[1]PilotReg!$A:$A,[1]PilotReg!$E:$E) -> Nipon Somsri | D32: =LOOKUP(A32,[1]PilotReg!$A:$A,[1]PilotReg!$G:$G) -> M | E32: =LOOKUP(A32,[1]PilotReg!$A:$A,[1]PilotReg!$F:$F) -> Isarn Club | F32: 203 | G32: 24 | H32: 30 | I32: 11 | J32: 30 | K32: 2 | L32: 30 | M32: 2 | N32: 30 | O32: 3 | P32: 25 | Q32: 8 | R32: 30 | S32: 2
A33: 11 | B33: =LOOKUP(A33,[1]PilotReg!$A:$A,[1]PilotReg!$B:$B) -> Red-Blk-White | C33: =LOOKUP(A33,[1]PilotReg!$A:$A,[1]PilotReg!$E:$E) -> Soratat Thongsub | D33: =LOOKUP(A33,[1]PilotReg!$A:$A,[1]PilotReg!$G:$G) -> M | E33: =LOOKUP(A33,[1]PilotReg!$A:$A,[1]PilotReg!$F:$F) -> Doklumduan | F33: 200 | G33: 25 | H33: 30 | I33: 8 | J33: 25 | K33: 3 | L33: 30 | M33: 2 | N33: 30 | O33: 2 | P33: 30 | Q33: 8 | R33: 30 | S33: 2
A34: 43 | B34: =LOOKUP(A34,[1]PilotReg!$A:$A,[1]PilotReg!$B:$B) -> Yellow-White | C34: =LOOKUP(A34,[1]PilotReg!$A:$A,[1]PilotReg!$E:$E) -> A Aongard | D34: =LOOKUP(A34,[1]PilotReg!$A:$A,[1]PilotReg!$G:$G) -> M | E34: =LOOKUP(A34,[1]PilotReg!$A:$A,[1]PilotReg!$F:$F) -> Siam Junior | F34: 200 | G34: 25 | H34: 30 | I34: 16 | J34: 30 | K34: 2 | L34: 30 | M34: 18 | N34: 30 | O34: 0 | P34: 30 | Q34: 14 | R34: 0 | S34: 0
A35: 17 | B35: =LOOKUP(A35,[1]PilotReg!$A:$A,[1]PilotReg!$B:$B) -> Black-Orange | C35: =LOOKUP(A35,[1]PilotReg!$A:$A,[1]PilotReg!$E:$E) -> Chanapa Sermsai | D35: =LOOKUP(A35,[1]PilotReg!$A:$A,[1]PilotReg!$G:$G) -> F | E35: =LOOKUP(A35,[1]PilotReg!$A:$A,[1]PilotReg!$F:$F) -> Aunza Thailand | F35: 198 | G35: 27 | H35: 30 | I35: 2 | J35: 30 | K35: 2 | L35: 30 | M35: 2 | N35: 30 | O35: 2 | P35: 30 | Q35: 8 | R35: 30 | S35: 2
A36: 8 | B36: =LOOKUP(A36,[1]PilotReg!$A:$A,[1]PilotReg!$B:$B) -> White | C36: =LOOKUP(A36,[1]PilotReg!$A:$A,[1]PilotReg!$E:$E) -> Plaifha Thongdonpum | D36: =LOOKUP(A36,[1]PilotReg!$A:$A,[1]PilotReg!$G:$G) -> F | E36: =LOOKUP(A36,[1]PilotReg!$A:$A,[1]PilotReg!$F:$F) -> Siam Junior | F36: 197 | G36: 28 | H36: 30 | I36: 9 | J36: 22 | K36: 2 | L36: 30 | M36: 2 | N36: 30 | O36: 2 | P36: 30 | Q36: 8 | R36: 30 | S36: 2
A37: 22 | B37: =LOOKUP(A37,[1]PilotReg!$A:$A,[1]PilotReg!$B:$B) -> Blue-Grey | C37: =LOOKUP(A37,[1]PilotReg!$A:$A,[1]PilotReg!$E:$E) -> Nutchai Dadrung | D37: =LOOKUP(A37,[1]PilotReg!$A:$A,[1]PilotReg!$G:$G) -> M | E37: =LOOKUP(A37,[1]PilotReg!$A:$A,[1]PilotReg!$F:$F) -> Moobin | F37: 196 | G37: 29 | H37: 30 | I37: 2 | J37: 30 | K37: 2 | L37: 30 | M37: 0 | N37: 30 | O37: 2 | P37: 30 | Q37: 8 | R37: 30 | S37: 2
A38: 35 | B38: =LOOKUP(A38,[1]PilotReg!$A:$A,[1]PilotReg!$B:$B) -> Green-Red | C38: =LOOKUP(A38,[1]PilotReg!$A:$A,[1]PilotReg!$E:$E) -> Kittisak Khamwongpin | D38: =LOOKUP(A38,[1]PilotReg!$A:$A,[1]PilotReg!$G:$G) -> M | E38: =LOOKUP(A38,[1]PilotReg!$A:$A,[1]PilotReg!$F:$F) -> Doklumduan | F38: 196 | G38: 29 | H38: 30 | I38: 2 | J38: 30 | K38: 0 | L38: 30 | M38: 7 | N38: 25 | O38: 2 | P38: 30 | Q38: 8 | R38: 30 | S38: 2
A39: 25 | B39: =LOOKUP(A39,[1]PilotReg!$A:$A,[1]PilotReg!$B:$B) -> Red-Yellow | C39: =LOOKUP(A39,[1]PilotReg!$A:$A,[1]PilotReg!$E:$E) -> Piyapong Tremsap | D39: =LOOKUP(A39,[1]PilotReg!$A:$A,[1]PilotReg!$G:$G) -> M | E39: =LOOKUP(A39,[1]PilotReg!$A:$A,[1]PilotReg!$F:$F) -> Ubonratchathani Aero Club | F39: 196 | G39: 29 | H39: 25 | I39: 2 | J39: 30 | K39: 2 | L39: 30 | M39: 0 | N39: 30 | O39: 2 | P39: 30 | Q39: 13 | R39: 30 | S39: 2
A40: 3 | B40: =LOOKUP(A40,[1]PilotReg!$A:$A,[1]PilotReg!$B:$B) -> Orange-Green | C40: =LOOKUP(A40,[1]PilotReg!$A:$A,[1]PilotReg!$E:$E) -> Avasda Chaisorn | D40: =LOOKUP(A40,[1]PilotReg!$A:$A,[1]PilotReg!$G:$G) -> F | E40: =LOOKUP(A40,[1]PilotReg!$A:$A,[1]PilotReg!$F:$F) -> 4st Mahongsorn | F40: 193 | G40: 32 | H40: 30 | I40: 2 | J40: 30 | K40: 2 | L40: 30 | M40: 2 | N40: 30 | O40: 2 | P40: 25 | Q40: 8 | R40: 30 | S40: 2
A41: 9 | B41: =LOOKUP(A41,[1]PilotReg!$A:$A,[1]PilotReg!$B:$B) -> Blue-White | C41: =LOOKUP(A41,[1]PilotReg!$A:$A,[1]PilotReg!$E:$E) -> Paramin Sangkaew | D41: =LOOKUP(A41,[1]PilotReg!$A:$A,[1]PilotReg!$G:$G) -> M | E41: =LOOKUP(A41,[1]PilotReg!$A:$A,[1]PilotReg!$F:$F) -> Doklumduan | F41: 193 | G41: 32 | H41: 30 | I41: 2 | J41: 30 | K41: 2 | L41: 30 | M41: 2 | N41: 30 | O41: 2 | P41: 25 | Q41: 8 | R41: 30 | S41: 2
A42: 30 | B42: =LOOKUP(A42,[1]PilotReg!$A:$A,[1]PilotReg!$B:$B) -> Red-White | C42: =LOOKUP(A42,[1]PilotReg!$A:$A,[1]PilotReg!$E:$E) -> Pattarin Insornsart | D42: =LOOKUP(A42,[1]PilotReg!$A:$A,[1]PilotReg!$G:$G) -> F | E42: =LOOKUP(A42,[1]PilotReg!$A:$A,[1]PilotReg!$F:$F) -> 4st Mahongsorn | F42: 190 | G42: 34 | H42: 30 | I42: 2 | J42: 30 | K42: 2 | L42: 30 | M42: 2 | N42: 30 | O42: 2 | P42: 22 | Q42: 8 | R42: 30 | S42: 2
A43: 16 | B43: =LOOKUP(A43,[1]PilotReg!$A:$A,[1]PilotReg!$B:$B) -> Blue-Orange | C43: =LOOKUP(A43,[1]PilotReg!$A:$A,[1]PilotReg!$E:$E) -> Jirasak Viteetham | D43: =LOOKUP(A43,[1]PilotReg!$A:$A,[1]PilotReg!$G:$G) -> M | E43: =LOOKUP(A43,[1]PilotReg!$A:$A,[1]PilotReg!$F:$F) -> Isarn Club | F43: 179 | G43: 35 | H43: 30 | I43: 6 | J43: 22 | K43: 5 | L43: 22 | M43: 2 | N43: 20 | O43: 2 | P43: 30 | Q43: 8 | R43: 30 | S43: 2
A44: 14 | B44: =LOOKUP(A44,[1]PilotReg!$A:$A,[1]PilotReg!$B:$B) -> Red | C44: =LOOKUP(A44,[1]PilotReg!$A:$A,[1]PilotReg!$E:$E) -> Kittipas Boonkoom | D44: =LOOKUP(A44,[1]PilotReg!$A:$A,[1]PilotReg!$G:$G) -> M | E44: =LOOKUP(A44,[1]PilotReg!$A:$A,[1]PilotReg!$F:$F) -> Doklumduan | F44: 175 | G44: 36 | H44: 22 | I44: 2 | J44: 25 | K44: 2 | L44: 30 | M44: 2 | N44: 30 | O44: 2 | P44: 25 | Q44: 8 | R44: 25 | S44: 2
A45: 6 | B45: =LOOKUP(A45,[1]PilotReg!$A:$A,[1]PilotReg!$B:$B) -> Orange-White | C45: =LOOKUP(A45,[1]PilotReg!$A:$A,[1]PilotReg!$E:$E) -> Suriyon Sungsook | D45: =LOOKUP(A45,[1]PilotReg!$A:$A,[1]PilotReg!$G:$G) -> M | E45: =LOOKUP(A45,[1]PilotReg!$A:$A,[1]PilotReg!$F:$F) -> 4st Mahongsorn | F45: 156 | G45: 37 | H45: 30 | I45: 2 | J45: 30 | K45: 2 | L45: 30 | M45: 2 | N45: 30 | O45: 0 | P45: 30 | Q45: 0 | R45: 0 | S45: 0
A46: 44 | B46: =LOOKUP(A46,[1]PilotReg!$A:$A,[1]PilotReg!$B:$B) -> Blue-Yellow | C46: =LOOKUP(A46,[1]PilotReg!$A:$A,[1]PilotReg!$E:$E) -> Woraphot Khamchomphu | D46: =LOOKUP(A46,[1]PilotReg!$A:$A,[1]PilotReg!$G:$G) -> M | E46: =LOOKUP(A46,[1]PilotReg!$A:$A,[1]PilotReg!$F:$F) -> Ubonratchathani Aero Club | F46: 154 | G46: 38 | H46: 30 | I46: 5 | J46: 0 | K46: 0 | L46: 30 | M46: 0 | N46: 30 | O46: 2 | P46: 22 | Q46: 8 | R46: 25 | S46: 2
A47: 40 | B47: =LOOKUP(A47,[1]PilotReg!$A:$A,[1]PilotReg!$B:$B) -> White | C47: =LOOKUP(A47,[1]PilotReg!$A:$A,[1]PilotReg!$E:$E) -> Gorbua Yenvaree | D47: =LOOKUP(A47,[1]PilotReg!$A:$A,[1]PilotReg!$G:$G) -> F | E47: =LOOKUP(A47,[1]PilotReg!$A:$A,[1]PilotReg!$F:$F) -> Aunza Thailand | F47: 142 | G47: 39 | H47: 22 | I47: 2 | J47: 0 | K47: 0 | L47: 30 | M47: 2 | N47: 22 | O47: 2 | P47: 22 | Q47: 8 | R47: 30 | S47: 2
A48: 1 | B48: =LOOKUP(A48,[1]PilotReg!$A:$A,[1]PilotReg!$B:$B) -> Orange-Blue | C48: =LOOKUP(A48,[1]PilotReg!$A:$A,[1]PilotReg!$E:$E) -> Tanaporn Panapho | D48: =LOOKUP(A48,[1]PilotReg!$A:$A,[1]PilotReg!$G:$G) -> F | E48: =LOOKUP(A48,[1]PilotReg!$A:$A,[1]PilotReg!$F:$F) -> Aunza Thailand | F48: 121 | G48: 40 | H48: 22 | I48: 2 | J48: 0 | K48: 0 | L48: 25 | M48: 2 | N48: 30 | O48: 2 | P48: 30 | Q48: 8 | R48: 0 | S48: 0
A49: 18 | B49: =LOOKUP(A49,[1]PilotReg!$A:$A,[1]PilotReg!$B:$B) -> Blue-Green | C49: =LOOKUP(A49,[1]PilotReg!$A:$A,[1]PilotReg!$E:$E) -> Anuparp Sura | D49: =LOOKUP(A49,[1]PilotReg!$A:$A,[1]PilotReg!$G:$G) -> M | E49: =LOOKUP(A49,[1]PilotReg!$A:$A,[1]PilotReg!$F:$F) -> Polly Thailand | F49: 94 | G49: 41 | H49: 30 | I49: 2 | J49: 30 | K49: 2 | L49: 0 | M49: 0 | N49: 30 | O49: 0 | P49: 0 | Q49: 0 | R49: 0 | S49: 0
A50: 28 | B50: =LOOKUP(A50,[1]PilotReg!$A:$A,[1]PilotReg!$B:$B) -> Orange-Red | C50: =LOOKUP(A50,[1]PilotReg!$A:$A,[1]PilotReg!$E:$E) -> Puja Laksana | D50: =LOOKUP(A50,[1]PilotReg!$A:$A,[1]PilotReg!$G:$G) -> M | E50: =LOOKUP(A50,[1]PilotReg!$A:$A,[1]PilotReg!$F:$F) -> Individual | F50: 62 | G50: 42 | H50: 30 | I50: 2 | J50: 0 | K50: 0 | L50: 0 | M50: 0 | N50: 30 | O50: 0 | P50: 0 | Q50: 0 | R50: 0 | S50: 0
A51: 42 | B51: =LOOKUP(A51,[1]PilotReg!$A:$A,[1]PilotReg!$B:$B) -> Red-Blue | C51: =LOOKUP(A51,[1]PilotReg!$A:$A,[1]PilotReg!$E:$E) -> Chanin Chaithaset | D51: =LOOKUP(A51,[1]PilotReg!$A:$A,[1]PilotReg!$G:$G) -> M | E51: =LOOKUP(A51,[1]PilotReg!$A:$A,[1]PilotReg!$F:$F) -> Isarn Club | F51: 62 | G51: 42 | H51: 30 | I51: 2 | J51: 0 | K51: 0 | L51: 0 | M51: 0 | N51: 30 | O51: 0 | P51: 0 | Q51: 0 | R51: 0 | S51: 0
A52: 39 | B52: =LOOKUP(A52,[1]PilotReg!$A:$A,[1]PilotReg!$B:$B) -> Blue-Black | C52: =LOOKUP(A52,[1]PilotReg!$A:$A,[1]PilotReg!$E:$E) -> Naruporn Wathaya | D52: =LOOKUP(A52,[1]PilotReg!$A:$A,[1]PilotReg!$G:$G) -> F | E52: =LOOKUP(A52,[1]PilotReg!$A:$A,[1]PilotReg!$F:$F) -> Siam Junior | F52: 52 | G52: 44 | H52: 20 | I52: 2 | J52: 0 | K52: 0 | L52: 0 | M52: 0 | N52: 30 | O52: 0 | P52: 0 | Q52: 0 | R52: 0 | S52: 0

Sheet IndividualEconomy
A1: Master Score
A2: Individual Economy | F2: Final
A3: Event: | B3: 3rd Thailand Paramotor King's Cup Open | F3: Total No. of Pilots:
A4: Venue: | B4: Nong Kho, Chonburi, Thailand
A6: Wing No. | B6: Colour | C6: Pilot Name | D6: Gender | E6: Team | F6: Total Score | G6: Rank
H7: 5 | I7: 12
A8: Automatic Fields. Do not modify manually.
A9: 21 | B9: =LOOKUP(A9,[1]PilotReg!$A:$A,[1]PilotReg!$B:$B) -> Orange-Blue | C9: =LOOKUP(A9,[1]PilotReg!$A:$A,[1]PilotReg!$E:$E) -> Kittiphop Phrommat | D9: =LOOKUP(A9,[1]PilotReg!$A:$A,[1]PilotReg!$G:$G) -> M | E9: =LOOKUP(A9,[1]PilotReg!$A:$A,[1]PilotReg!$F:$F) -> Mosquito | F9: =SUM(H9:I9) -> 60 | G9: =RANK(F9,$F:$F) -> 1 | H9: 30 | I9: 30
A10: 12 | B10: =LOOKUP(A10,[1]PilotReg!$A:$A,[1]PilotReg!$B:$B) -> Blue-White | C10: =LOOKUP(A10,[1]PilotReg!$A:$A,[1]PilotReg!$E:$E) -> Noppanai Jaisawang | D10: =LOOKUP(A10,[1]PilotReg!$A:$A,[1]PilotReg!$G:$G) -> M | E10: =LOOKUP(A10,[1]PilotReg!$A:$A,[1]PilotReg!$F:$F) -> Moobin | F10: 44 | G10: 2 | H10: 22 | I10: 22
A11: 5 | B11: =LOOKUP(A11,[1]PilotReg!$A:$A,[1]PilotReg!$B:$B) -> Red-Orange | C11: =LOOKUP(A11,[1]PilotReg!$A:$A,[1]PilotReg!$E:$E) -> Daniel Macak | D11: =LOOKUP(A11,[1]PilotReg!$A:$A,[1]PilotReg!$G:$G) -> M | E11: =LOOKUP(A11,[1]PilotReg!$A:$A,[1]PilotReg!$F:$F) -> Siam Junior | F11: 42 | G11: 3 | H11: 17 | I11: 25
A12: 15 | B12: =LOOKUP(A12,[1]PilotReg!$A:$A,[1]PilotReg!$B:$B) -> Blue-White | C12: =LOOKUP(A12,[1]PilotReg!$A:$A,[1]PilotReg!$E:$E) -> David Graupera | D12: =LOOKUP(A12,[1]PilotReg!$A:$A,[1]PilotReg!$G:$G) -> M | E12: =LOOKUP(A12,[1]PilotReg!$A:$A,[1]PilotReg!$F:$F) -> Isarn Club | F12: 41 | G12: 4 | H12: 19 | I12: 22
A13: 19 | B13: =LOOKUP(A13,[1]PilotReg!$A:$A,[1]PilotReg!$B:$B) -> Blue-Green | C13: =LOOKUP(A13,[1]PilotReg!$A:$A,[1]PilotReg!$E:$E) -> Phrompiriya Tapeanthong | D13: =LOOKUP(A13,[1]PilotReg!$A:$A,[1]PilotReg!$G:$G) -> M | E13: =LOOKUP(A13,[1]PilotReg!$A:$A,[1]PilotReg!$F:$F) -> Mosquito | F13: 35 | G13: 5 | H13: 16 | I13: 19
A14: 26 | B14: =LOOKUP(A14,[1]PilotReg!$A:$A,[1]PilotReg!$B:$B) -> Red-Grey | C14: =LOOKUP(A14,[1]PilotReg!$A:$A,[1]PilotReg!$E:$E) -> Pinit Kingtong | D14: =LOOKUP(A14,[1]PilotReg!$A:$A,[1]PilotReg!$G:$G) -> M | E14: =LOOKUP(A14,[1]PilotReg!$A:$A,[1]PilotReg!$F:$F) -> Moobin | F14: 34 | G14: 6 | H14: 15 | I14: 19
A15: 37 | B15: =LOOKUP(A15,[1]PilotReg!$A:$A,[1]PilotReg!$B:$B) -> Grey-Red | C15: =LOOKUP(A15,[1]PilotReg!$A:$A,[1]PilotReg!$E:$E) -> Sirichok Putaworn | D15: =LOOKUP(A15,[1]PilotReg!$A:$A,[1]PilotReg!$G:$G) -> M | E15: =LOOKUP(A15,[1]PilotReg!$A:$A,[1]PilotReg!$F:$F) -> Individual | F15: 30 | G15: 7 | H15: 13 | I15: 17
A16: 23 | B16: =LOOKUP(A16,[1]PilotReg!$A:$A,[1]PilotReg!$B:$B) -> Black-Blue | C16: =LOOKUP(A16,[1]PilotReg!$A:$A,[1]PilotReg!$E:$E) -> Prakit Binkaew | D16: =LOOKUP(A16,[1]PilotReg!$A:$A,[1]PilotReg!$G:$G) -> M | E16: =LOOKUP(A16,[1]PilotReg!$A:$A,[1]PilotReg!$F:$F) -> Individual | F16: 28 | G16: 8 | H16: 12 | I16: 16
A17: 45 | B17: =LOOKUP(A17,[1]PilotReg!$A:$A,[1]PilotReg!$B:$B) -> Blue-Red | C17: =LOOKUP(A17,[1]PilotReg!$A:$A,[1]PilotReg!$E:$E) -> Jiangsak Puangpee | D17: =LOOKUP(A17,[1]PilotReg!$A:$A,[1]PilotReg!$G:$G) -> M | E17: =LOOKUP(A17,[1]PilotReg!$A:$A,[1]PilotReg!$F:$F) -> Doklumduan | F17: 27 | G17: 9 | H17: 14 | I17: 13
A18: 30 | B18: =LOOKUP(A18,[1]PilotReg!$A:$A,[1]PilotReg!$B:$B) -> Red-White | C18: =LOOKUP(A18,[1]PilotReg!$A:$A,[1]PilotReg!$E:$E) -> Pattarin Insornsart | D18: =LOOKUP(A18,[1]PilotReg!$A:$A,[1]PilotReg!$G:$G) -> F | E18: =LOOKUP(A18,[1]PilotReg!$A:$A,[1]PilotReg!$F:$F) -> 4st Mahongsorn | F18: 27 | G18: 9 | H18: 25 | I18: 2
A19: 29 | B19: =LOOKUP(A19,[1]PilotReg!$A:$A,[1]PilotReg!$B:$B) -> Orange-Grey | C19: =LOOKUP(A19,[1]PilotReg!$A:$A,[1]PilotReg!$E:$E) -> Pongnarin Somboon | D19: =LOOKUP(A19,[1]PilotReg!$A:$A,[1]PilotReg!$G:$G) -> M | E19: =LOOKUP(A19,[1]PilotReg!$A:$A,[1]PilotReg!$F:$F) -> Siam Junior | F19: 23 | G19: 11 | H19: 10 | I19: 13
A20: 32 | B20: =LOOKUP(A20,[1]PilotReg!$A:$A,[1]PilotReg!$B:$B) -> Red-White | C20: =LOOKUP(A20,[1]PilotReg!$A:$A,[1]PilotReg!$E:$E) -> Saman Promnaree | D20: =LOOKUP(A20,[1]PilotReg!$A:$A,[1]PilotReg!$G:$G) -> M | E20: =LOOKUP(A20,[1]PilotReg!$A:$A,[1]PilotReg!$F:$F) -> Mosquito | F20: 23 | G20: 11 | H20: 8 | I20: 15
A21: 40 | B21: =LOOKUP(A21,[1]PilotReg!$A:$A,[1]PilotReg!$B:$B) -> White | C21: =LOOKUP(A21,[1]PilotReg!$A:$A,[1]PilotReg!$E:$E) -> Gorbua Yenvaree | D21: =LOOKUP(A21,[1]PilotReg!$A:$A,[1]PilotReg!$G:$G) -> F | E21: =LOOKUP(A21,[1]PilotReg!$A:$A,[1]PilotReg!$F:$F) -> Aunza Thailand | F21: 22 | G21: 13 | H21: 20 | I21: 2
A22: 2 | B22: =LOOKUP(A22,[1]PilotReg!$A:$A,[1]PilotReg!$B:$B) -> Red-Orange | C22: =LOOKUP(A22,[1]PilotReg!$A:$A,[1]PilotReg!$E:$E) -> Aroonrat Jongonklang | D22: =LOOKUP(A22,[1]PilotReg!$A:$A,[1]PilotReg!$G:$G) -> F | E22: =LOOKUP(A22,[1]PilotReg!$A:$A,[1]PilotReg!$F:$F) -> Polly Thailand | F22: 20 | G22: 14 | H22: 18 | I22: 2
A23: 36 | B23: =LOOKUP(A23,[1]PilotReg!$A:$A,[1]PilotReg!$B:$B) -> Orange-Blue | C23: =LOOKUP(A23,[1]PilotReg!$A:$A,[1]PilotReg!$E:$E) -> Chayaphong Pothipuk | D23: =LOOKUP(A23,[1]PilotReg!$A:$A,[1]PilotReg!$G:$G) -> M | E23: =LOOKUP(A23,[1]PilotReg!$A:$A,[1]PilotReg!$F:$F) -> Polly Thailand | F23: 16 | G23: 15 | H23: 2 | I23: 14
A24: 7 | B24: =LOOKUP(A24,[1]PilotReg!$A:$A,[1]PilotReg!$B:$B) -> Red-Black | C24: =LOOKUP(A24,[1]PilotReg!$A:$A,[1]PilotReg!$E:$E) -> Kerkrit Meunphukiew | D24: =LOOKUP(A24,[1]PilotReg!$A:$A,[1]PilotReg!$G:$G) -> M | E24: =LOOKUP(A24,[1]PilotReg!$A:$A,[1]PilotReg!$F:$F) -> Mosquito | F24: 16 | G24: 15 | H24: 7 | I24: 9
A25: 34 | B25: =LOOKUP(A25,[1]PilotReg!$A:$A,[1]PilotReg!$B:$B) -> Red-Grey | C25: =LOOKUP(A25,[1]PilotReg!$A:$A,[1]PilotReg!$E:$E) -> Panupong Tipayachan | D25: =LOOKUP(A25,[1]PilotReg!$A:$A,[1]PilotReg!$G:$G) -> M | E25: =LOOKUP(A25,[1]PilotReg!$A:$A,[1]PilotReg!$F:$F) -> Aunza Thailand | F25: 15 | G25: 17 | H25: 2 | I25: 13
A26: 10 | B26: =LOOKUP(A26,[1]PilotReg!$A:$A,[1]PilotReg!$B:$B) -> Orange-Blue | C26: =LOOKUP(A26,[1]PilotReg!$A:$A,[1]PilotReg!$E:$E) -> Noparat Intharaumnuay | D26: =LOOKUP(A26,[1]PilotReg!$A:$A,[1]PilotReg!$G:$G) -> M | E26: =LOOKUP(A26,[1]PilotReg!$A:$A,[1]PilotReg!$F:$F) -> Mosquito | F26: 15 | G26: 17 | H26: 2 | I26: 13
A27: 20 | B27: =LOOKUP(A27,[1]PilotReg!$A:$A,[1]PilotReg!$B:$B) -> Purple-Orange | C27: =LOOKUP(A27,[1]PilotReg!$A:$A,[1]PilotReg!$E:$E) -> Somponk Busabonk | D27: =LOOKUP(A27,[1]PilotReg!$A:$A,[1]PilotReg!$G:$G) -> M | E27: =LOOKUP(A27,[1]PilotReg!$A:$A,[1]PilotReg!$F:$F) -> Moobin | F27: 11 | G27: 19 | H27: 2 | I27: 9
A28: 22 | B28: =LOOKUP(A28,[1]PilotReg!$A:$A,[1]PilotReg!$B:$B) -> Blue-Grey | C28: =LOOKUP(A28,[1]PilotReg!$A:$A,[1]PilotReg!$E:$E) -> Nutchai Dadrung | D28: =LOOKUP(A28,[1]PilotReg!$A:$A,[1]PilotReg!$G:$G) -> M | E28: =LOOKUP(A28,[1]PilotReg!$A:$A,[1]PilotReg!$F:$F) -> Moobin | F28: 11 | G28: 19 | H28: 2 | I28: 9
A29: 3 | B29: =LOOKUP(A29,[1]PilotReg!$A:$A,[1]PilotReg!$B:$B) -> Orange-Green | C29: =LOOKUP(A29,[1]PilotReg!$A:$A,[1]PilotReg!$E:$E) -> Avasda Chaisorn | D29: =LOOKUP(A29,[1]PilotReg!$A:$A,[1]PilotReg!$G:$G) -> F | E29: =LOOKUP(A29,[1]PilotReg!$A:$A,[1]PilotReg!$F:$F) -> 4st Mahongsorn | F29: 11 | G29: 19 | H29: 9 | I29: 2
A30: 6 | B30: =LOOKUP(A30,[1]PilotReg!$A:$A,[1]PilotReg!$B:$B) -> Orange-White | C30: =LOOKUP(A30,[1]PilotReg!$A:$A,[1]PilotReg!$E:$E) -> Suriyon Sungsook | D30: =LOOKUP(A30,[1]PilotReg!$A:$A,[1]PilotReg!$G:$G) -> M | E30: =LOOKUP(A30,[1]PilotReg!$A:$A,[1]PilotReg!$F:$F) -> 4st Mahongsorn | F30: 11 | G30: 19 | H30: 11 | I30: 0
A31: 27 | B31: =LOOKUP(A31,[1]PilotReg!$A:$A,[1]PilotReg!$B:$B) -> Black-Grey | C31: =LOOKUP(A31,[1]PilotReg!$A:$A,[1]PilotReg!$E:$E) -> Nipon Somsri | D31: =LOOKUP(A31,[1]PilotReg!$A:$A,[1]PilotReg!$G:$G) -> M | E31: =LOOKUP(A31,[1]PilotReg!$A:$A,[1]PilotReg!$F:$F) -> Isarn Club | F31: 8 | G31: 23 | H31: 2 | I31: 6
A32: 1 | B32: =LOOKUP(A32,[1]PilotReg!$A:$A,[1]PilotReg!$B:$B) -> Orange-Blue | C32: =LOOKUP(A32,[1]PilotReg!$A:$A,[1]PilotReg!$E:$E) -> Tanaporn Panapho | D32: =LOOKUP(A32,[1]PilotReg!$A:$A,[1]PilotReg!$G:$G) -> F | E32: =LOOKUP(A32,[1]PilotReg!$A:$A,[1]PilotReg!$F:$F) -> Aunza Thailand | F32: 8 | G32: 23 | H32: 6 | I32: 2
A33: 33 | B33: =LOOKUP(A33,[1]PilotReg!$A:$A,[1]PilotReg!$B:$B) -> Black-Yellow | C33: =LOOKUP(A33,[1]PilotReg!$A:$A,[1]PilotReg!$E:$E) -> Pongkorn Thanasakulkornsaeng | D33: =LOOKUP(A33,[1]PilotReg!$A:$A,[1]PilotReg!$G:$G) -> M | E33: =LOOKUP(A33,[1]PilotReg!$A:$A,[1]PilotReg!$F:$F) -> Polly Thailand | F33: 7 | G33: 25 | H33: 2 | I33: 5
A34: 31 | B34: =LOOKUP(A34,[1]PilotReg!$A:$A,[1]PilotReg!$B:$B) -> Yellow-Red | C34: =LOOKUP(A34,[1]PilotReg!$A:$A,[1]PilotReg!$E:$E) -> Pongparn Supasorn | D34: =LOOKUP(A34,[1]PilotReg!$A:$A,[1]PilotReg!$G:$G) -> M | E34: =LOOKUP(A34,[1]PilotReg!$A:$A,[1]PilotReg!$F:$F) -> Ubonratchathani Aero Club | F34: 7 | G34: 25 | H34: 5 | I34: 2
A35: 8 | B35: =LOOKUP(A35,[1]PilotReg!$A:$A,[1]PilotReg!$B:$B) -> White | C35: =LOOKUP(A35,[1]PilotReg!$A:$A,[1]PilotReg!$E:$E) -> Plaifha Thongdonpum | D35: =LOOKUP(A35,[1]PilotReg!$A:$A,[1]PilotReg!$G:$G) -> F | E35: =LOOKUP(A35,[1]PilotReg!$A:$A,[1]PilotReg!$F:$F) -> Siam Junior | F35: 6 | G35: 27 | H35: 4 | I35: 2
A36: 11 | B36: =LOOKUP(A36,[1]PilotReg!$A:$A,[1]PilotReg!$B:$B) -> Red-Blk-White | C36: =LOOKUP(A36,[1]PilotReg!$A:$A,[1]PilotReg!$E:$E) -> Soratat Thongsub | D36: =LOOKUP(A36,[1]PilotReg!$A:$A,[1]PilotReg!$G:$G) -> M | E36: =LOOKUP(A36,[1]PilotReg!$A:$A,[1]PilotReg!$F:$F) -> Doklumduan | F36: 5 | G36: 28 | H36: 2 | I36: 3
A37: 43 | B37: =LOOKUP(A37,[1]PilotReg!$A:$A,[1]PilotReg!$B:$B) -> Yellow-White | C37: =LOOKUP(A37,[1]PilotReg!$A:$A,[1]PilotReg!$E:$E) -> A Aongard | D37: =LOOKUP(A37,[1]PilotReg!$A:$A,[1]PilotReg!$G:$G) -> M | E37: =LOOKUP(A37,[1]PilotReg!$A:$A,[1]PilotReg!$F:$F) -> Siam Junior | F37: 5 | G37: 28 | H37: 2 | I37: 3
A38: 35 | B38: =LOOKUP(A38,[1]PilotReg!$A:$A,[1]PilotReg!$B:$B) -> Green-Red | C38: =LOOKUP(A38,[1]PilotReg!$A:$A,[1]PilotReg!$E:$E) -> Kittisak Khamwongpin | D38: =LOOKUP(A38,[1]PilotReg!$A:$A,[1]PilotReg!$G:$G) -> M | E38: =LOOKUP(A38,[1]PilotReg!$A:$A,[1]PilotReg!$F:$F) -> Doklumduan | F38: 5 | G38: 28 | H38: 3 | I38: 2
A39: 16 | B39: =LOOKUP(A39,[1]PilotReg!$A:$A,[1]PilotReg!$B:$B) -> Blue-Orange | C39: =LOOKUP(A39,[1]PilotReg!$A:$A,[1]PilotReg!$E:$E) -> Jirasak Viteetham | D39: =LOOKUP(A39,[1]PilotReg!$A:$A,[1]PilotReg!$G:$G) -> M | E39: =LOOKUP(A39,[1]PilotReg!$A:$A,[1]PilotReg!$F:$F) -> Isarn Club | F39: 5 | G39: 28 | H39: 2 | I39: 3
A40: 48 | B40: =LOOKUP(A40,[1]PilotReg!$A:$A,[1]PilotReg!$B:$B) -> Green-Yellow | C40: =LOOKUP(A40,[1]PilotReg!$A:$A,[1]PilotReg!$E:$E) -> Nut Thanaphuthiphong | D40: =LOOKUP(A40,[1]PilotReg!$A:$A,[1]PilotReg!$G:$G) -> M | E40: =LOOKUP(A40,[1]PilotReg!$A:$A,[1]PilotReg!$F:$F) -> Individual | F40: 4 | G40: 32 | H40: 2 | I40: 2
A41: 13 | B41: =LOOKUP(A41,[1]PilotReg!$A:$A,[1]PilotReg!$B:$B) -> Black-Green | C41: =LOOKUP(A41,[1]PilotReg!$A:$A,[1]PilotReg!$E:$E) -> Yuttaphol Anantawichain | D41: =LOOKUP(A41,[1]PilotReg!$A:$A,[1]PilotReg!$G:$G) -> M | E41: =LOOKUP(A41,[1]PilotReg!$A:$A,[1]PilotReg!$F:$F) -> 4st Mahongsorn | F41: 4 | G41: 32 | H41: 2 | I41: 2
A42: 38 | B42: =LOOKUP(A42,[1]PilotReg!$A:$A,[1]PilotReg!$B:$B) -> Black-White | C42: =LOOKUP(A42,[1]PilotReg!$A:$A,[1]PilotReg!$E:$E) -> Chaiyapin Chaininwan | D42: =LOOKUP(A42,[1]PilotReg!$A:$A,[1]PilotReg!$G:$G) -> M | E42: =LOOKUP(A42,[1]PilotReg!$A:$A,[1]PilotReg!$F:$F) -> Isarn Club | F42: 4 | G42: 32 | H42: 2 | I42: 2
A43: 17 | B43: =LOOKUP(A43,[1]PilotReg!$A:$A,[1]PilotReg!$B:$B) -> Black-Orange | C43: =LOOKUP(A43,[1]PilotReg!$A:$A,[1]PilotReg!$E:$E) -> Chanapa Sermsai | D43: =LOOKUP(A43,[1]PilotReg!$A:$A,[1]PilotReg!$G:$G) -> F | E43: =LOOKUP(A43,[1]PilotReg!$A:$A,[1]PilotReg!$F:$F) -> Aunza Thailand | F43: 4 | G43: 32 | H43: 2 | I43: 2
A44: 25 | B44: =LOOKUP(A44,[1]PilotReg!$A:$A,[1]PilotReg!$B:$B) -> Red-Yellow | C44: =LOOKUP(A44,[1]PilotReg!$A:$A,[1]PilotReg!$E:$E) -> Piyapong Tremsap | D44: =LOOKUP(A44,[1]PilotReg!$A:$A,[1]PilotReg!$G:$G) -> M | E44: =LOOKUP(A44,[1]PilotReg!$A:$A,[1]PilotReg!$F:$F) -> Ubonratchathani Aero Club | F44: 4 | G44: 32 | H44: 2 | I44: 2
A45: 9 | B45: =LOOKUP(A45,[1]PilotReg!$A:$A,[1]PilotReg!$B:$B) -> Blue-White | C45: =LOOKUP(A45,[1]PilotReg!$A:$A,[1]PilotReg!$E:$E) -> Paramin Sangkaew | D45: =LOOKUP(A45,[1]PilotReg!$A:$A,[1]PilotReg!$G:$G) -> M | E45: =LOOKUP(A45,[1]PilotReg!$A:$A,[1]PilotReg!$F:$F) -> Doklumduan | F45: 4 | G45: 32 | H45: 2 | I45: 2
A46: 44 | B46: =LOOKUP(A46,[1]PilotReg!$A:$A,[1]PilotReg!$B:$B) -> Blue-Yellow | C46: =LOOKUP(A46,[1]PilotReg!$A:$A,[1]PilotReg!$E:$E) -> Woraphot Khamchomphu | D46: =LOOKUP(A46,[1]PilotReg!$A:$A,[1]PilotReg!$G:$G) -> M | E46: =LOOKUP(A46,[1]PilotReg!$A:$A,[1]PilotReg!$F:$F) -> Ubonratchathani Aero Club | F46: 4 | G46: 32 | H46: 2 | I46: 2
A47: 4 | B47: =LOOKUP(A47,[1]PilotReg!$A:$A,[1]PilotReg!$B:$B) -> Blue-Red | C47: =LOOKUP(A47,[1]PilotReg!$A:$A,[1]PilotReg!$E:$E) -> Chakrit Babphan | D47: =LOOKUP(A47,[1]PilotReg!$A:$A,[1]PilotReg!$G:$G) -> M | E47: =LOOKUP(A47,[1]PilotReg!$A:$A,[1]PilotReg!$F:$F) -> Moobin | F47: 2 | G47: 39 | H47: 2 | I47: 0
A48: 14 | B48: =LOOKUP(A48,[1]PilotReg!$A:$A,[1]PilotReg!$B:$B) -> Red | C48: =LOOKUP(A48,[1]PilotReg!$A:$A,[1]PilotReg!$E:$E) -> Kittipas Boonkoom | D48: =LOOKUP(A48,[1]PilotReg!$A:$A,[1]PilotReg!$G:$G) -> M | E48: =LOOKUP(A48,[1]PilotReg!$A:$A,[1]PilotReg!$F:$F) -> Doklumduan | F48: 2 | G48: 39 | H48: 2 | I48: 0
A49: 39 | B49: =LOOKUP(A49,[1]PilotReg!$A:$A,[1]PilotReg!$B:$B) -> Blue-Black | C49: =LOOKUP(A49,[1]PilotReg!$A:$A,[1]PilotReg!$E:$E) -> Naruporn Wathaya | D49: =LOOKUP(A49,[1]PilotReg!$A:$A,[1]PilotReg!$G:$G) -> F | E49: =LOOKUP(A49,[1]PilotReg!$A:$A,[1]PilotReg!$F:$F) -> Siam Junior | F49: 2 | G49: 39 | H49: 0 | I49: 2
A50: 18 | B50: =LOOKUP(A50,[1]PilotReg!$A:$A,[1]PilotReg!$B:$B) -> Blue-Green | C50: =LOOKUP(A50,[1]PilotReg!$A:$A,[1]PilotReg!$E:$E) -> Anuparp Sura | D50: =LOOKUP(A50,[1]PilotReg!$A:$A,[1]PilotReg!$G:$G) -> M | E50: =LOOKUP(A50,[1]PilotReg!$A:$A,[1]PilotReg!$F:$F) -> Polly Thailand | F50: 0 | G50: 42 | H50: 0 | I50: 0
A51: 28 | B51: =LOOKUP(A51,[1]PilotReg!$A:$A,[1]PilotReg!$B:$B) -> Orange-Red | C51: =LOOKUP(A51,[1]PilotReg!$A:$A,[1]PilotReg!$E:$E) -> Puja Laksana | D51: =LOOKUP(A51,[1]PilotReg!$A:$A,[1]PilotReg!$G:$G) -> M | E51: =LOOKUP(A51,[1]PilotReg!$A:$A,[1]PilotReg!$F:$F) -> Individual | F51: 0 | G51: 42 | H51: 0 | I51: 0
A52: 42 | B52: =LOOKUP(A52,[1]PilotReg!$A:$A,[1]PilotReg!$B:$B) -> Red-Blue | C52: =LOOKUP(A52,[1]PilotReg!$A:$A,[1]PilotReg!$E:$E) -> Chanin Chaithaset | D52: =LOOKUP(A52,[1]PilotReg!$A:$A,[1]PilotReg!$G:$G) -> M | E52: =LOOKUP(A52,[1]PilotReg!$A:$A,[1]PilotReg!$F:$F) -> Isarn Club | F52: 0 | G52: 42 | H52: 0 | I52: 0

Sheet TeamCombined
A3: Row Labels | B3: Sum of Total Score
A4: Mosquito | B4: 1547
A5: Kerkrit Meunphukiew | B5: 285
A6: Kittiphop Phrommat | B6: 379 | D6: Event: 3rd Thailand Paramotor King's Cup Open
A7: Noparat Intharaumnuay | B7: 279 | D7: Venue: Nong Kho, Chonburi, Thailand
A8: Phrompiriya Tapeanthong | B8: 331 | D8: Team Combined | F8: Final
A9: Saman Promnaree | B9: 273 | D9: Team | E9: Sum of Top 3 | F9: Rank
A10: Moobin | B10: 1201 | D10: Mosquito | E10: =SUM(LARGE($B$5:$B$9,{1,2,3})) -> 995 | F10: =RANK(E10,$E$10:$E$18) -> 1
A11: Chakrit Babphan | B11: 209 | D11: Siam Junior | E11: =SUM(LARGE($B$17:$B$21,{1,2,3})) -> 827 | F11: 2
A12: Noppanai Jaisawang | B12: 295 | D12: Polly Thailand | E12: =SUM(LARGE($B$35:$B$38,{1,2,3})) -> 794 | F12: 3
A13: Nutchai Dadrung | B13: 207 | D13: Moobin | E13: =SUM(LARGE($B$11:$B$15,{1,2,3})) -> 785 | F13: 4
A14: Pinit Kingtong | B14: 269 | D14: Isarn Club | E14: =SUM(LARGE($B$29:$B$33,{1,2,3})) -> 728 | F14: 5
A15: Somponk Busabonk | B15: 221 | D15: Doklumduan | E15: =SUM(LARGE($B$23:$B$27,{1,2,3})) -> 670 | F15: 6
A16: Siam Junior | B16: 1084 | D16: 4st Mahongsorn | E16: =SUM(LARGE($B$40:$B$43,{1,2,3})) -> 664 | F16: 7
A17: A Aongard | B17: 205 | D17: Aunza Thailand | E17: =SUM(LARGE(B50:B53,{1,2,3})) -> 654 | F17: 8
A18: Daniel Macak | B18: 318 | D18: Ubonratchathani Aero Club | E18: =SUM(LARGE($B$55:$B$57,{1,2,3})) -> 573 | F18: 9
A19: Naruporn Wathaya | B19: 54
A20: Plaifha Thongdonpum | B20: 203
A21: Pongnarin Somboon | B21: 304
A22: Doklumduan | B22: 1044
A23: Jiangsak Puangpee | B23: 264
A24: Kittipas Boonkoom | B24: 177
A25: Kittisak Khamwongpin | B25: 201
A26: Paramin Sangkaew | B26: 197
A27: Soratat Thongsub | B27: 205
A28: Isarn Club | B28: 974
A29: Chaiyapin Chaininwan | B29: 219
A30: Chanin Chaithaset | B30: 62
A31: David Graupera | B31: 298
A32: Jirasak Viteetham | B32: 184
A33: Nipon Somsri | B33: 211
A34: Polly Thailand | B34: 888
A35: Anuparp Sura | B35: 94
A36: Aroonrat Jongonklang | B36: 228
A37: Chayaphong Pothipuk | B37: 301
A38: Pongkorn Thanasakulkornsaeng | B38: 265
A39: 4st Mahongsorn | B39: 831
A40: Avasda Chaisorn | B40: 204
A41: Pattarin Insornsart | B41: 217
A42: Suriyon Sungsook | B42: 167
A43: Yuttaphol Anantawichain | B43: 243
A44: Individual | B44: 810
A45: Nut Thanaphuthiphong | B45: 246
A46: Prakit Binkaew | B46: 256
A47: Puja Laksana | B47: 62
A48: Sirichok Putaworn | B48: 246
A49: Aunza Thailand | B49: 783
A50: Chanapa Sermsai | B50: 202
A51: Gorbua Yenvaree | B51: 164
A52: Panupong Tipayachan | B52: 288
A53: Tanaporn Panapho | B53: 129
A54: Ubonratchathani Aero Club | B54: 573
A55: Piyapong Tremsap | B55: 200
A56: Pongparn Supasorn | B56: 215
A57: Woraphot Khamchomphu | B57: 158
A58: (blank)
A59: (blank)
A60: Grand Total | B60: 9735
